Cogmind - Beta 17 --- EXPLORER MODE // 2026.07.13 @ 23:10:06 // Winter2019/RPGLIKE Player: Grimbling Result: Escaped! Performance ------------- Evolutions (9) 4500 Regions Visited (20) 4000 Robots Destroyed (203) 1015 Value Destroyed (10287) 10287 Prototype IDs (53) 1060 Alien Tech Used (2) 400 Bonus (5300) 5300 TOTAL SCORE: 26562 Bonus ------- Network Hubs Disabled 200 Registered with UFD 300 Met Optimus in HQ 500 Met Zhirov 300 Met Optimus at Protoforge 1000 Win 3000 Cogmind --------- Core Integrity 473/600 Matter 500/500 Energy 1797/1800 System Corruption 0% Temperature Cool (4) Movement Hovering (40) Location To Epsilon Eridani Parts ------- > --- POWER (2) -------- Experimental Antimatter Reactor Experimental Antimatter Reactor > --- PROPULSION (4) --- Cooled Gravmag System Cooled Gravmag System Improved Gyrokinetic Inverter Improved Linear Gravjet > --- UTILITY (15) ----- Improved Trap Scanner Advanced Signal Interpreter Experimental Targeting Computer Experimental Armor Integrity Analyzer Particle Accelerator Quantum Capacitor Experimental ECM Suite Experimental Reaction Control System Advanced Phase Shifter Centrium Medium Armor Plating Graphene Brace Improved Force Field Advanced Dynamic Insulation System Improved Corruption Screen > --- WEAPON (2) ------- Enhanced Nova Cannon Concept Concussive Dispersal Blaster > --- INVENTORY (10) --- Protomatter-91 Protomatter-86 Protomatter-82 Protomatter-29 Transdimensional Reconstructor Core Reset Matrix Peak State ------------ > --- POWER ------------ Experimental Antimatter Reactor Experimental Antimatter Reactor > --- PROPULSION ------- Cooled Gravmag System Cooled Gravmag System Improved Gyrokinetic Inverter Improved Linear Gravjet > --- UTILITY ---------- Improved Trap Scanner Advanced Signal Interpreter Experimental Targeting Computer Experimental Armor Integrity Analyzer Particle Accelerator Quantum Capacitor Experimental ECM Suite Experimental Reaction Control System Graphene Brace Improved Force Field Advanced Dynamic Insulation System Improved Corruption Screen Concept Navigation Harness > --- WEAPON ----------- Enhanced Nova Cannon Concept Concussive Dispersal Blaster > --- INVENTORY -------- Protomatter Protomatter Protomatter Advanced Phase Shifter Centrium Medium Armor Plating Transdimensional Reconstructor Core Reset Matrix UFD Drillbomb [Rating: 195] Favorites ----------- Power Light Quantum Reactor Engine Ion Engine Power Core Neutrino Core Reactor Light Quantum Reactor Propulsion Cooled Gravmag System Leg Aluminum Leg Wheel Subdweller Monowheel Hover Unit Cooled Gravmag System Utility Advanced Terrain Scanner Device Advanced Terrain Scanner Storage Advanced Energy Well Processor Advanced Signal Interpreter Hackware Advanced System Shield Protection Propulsion Shielding Weapon Cooled Plasma Rifle Energy Gun Cooled Plasma Rifle Energy Cannon Enhanced Nova Cannon Ballistic Gun Light Assault Rifle Launcher Concept Concussive Dispersal Blaster Special Weapon CPS Tube Build | -11 -10 -10 -7 -7 -5 -5 -5 -5 -4 -4 -4 -4 -4 -4 -3 -3 -2 -2 -2 -1 ------- Run | Yrd Mat Sub Rec Scr Fac Upp Upp Zhi Pro Fac Ext Cet Arc Hub Res Tes Res Qua Frg Acc Slots Evolved 19 | 3 . 6 . 2 1 . . 1 . . 1 . . 1 1 . . . 3 . Power 1 | . . 1 . . . . . . . . . . . . . . . . . . Propulsion 3 | 1 . 2 . . . . . . . . . . . . . . . . . . Utility 14 | 1 . 3 . 2 1 . . 1 . . 1 . . 1 1 . . . 3 . Weapon 1 | 1 . . . . . . . . . . . . . . . . . . . . Parts Attached 98 | 6 6 8 4 7 19 1 . 6 . 7 6 1 . 1 3 3 1 1 18 . Power 14 | 1 . 1 1 1 4 . . . . . 1 . . . . . . . 5 . Engine 5 | 1 . 1 1 1 . . . . . . 1 . . . . . . . . . Core 3 | . . . . . 2 . . . . . . . . . . . . . 1 . Reactor 6 | . . . . . 2 . . . . . . . . . . . . . 4 . Propulsion 14 | 2 2 2 . . 5 . . 2 . 1 . . . . . . . . . . Treads . | . . . . . . . . . . . . . . . . . . . . . Leg 2 | 2 . . . . . . . . . . . . . . . . . . . . Wheel 2 | . . 2 . . . . . . . . . . . . . . . . . . Hover 10 | . 2 . . . 5 . . 2 . 1 . . . . . . . . . . Flight . | . . . . . . . . . . . . . . . . . . . . . Utility 40 | 1 1 1 1 5 5 . . 3 . 4 4 . . 1 1 1 1 . 11 . Device 29 | 1 . 1 1 3 3 . . 1 . 4 4 . . 1 . 1 1 . 8 . Storage 1 | . . . . . . . . 1 . . . . . . . . . . . . Processor 7 | . . . . 2 2 . . . . . . . . . 1 . . . 2 . Hackware 1 | . . . . . . . . 1 . . . . . . . . . . . . Protection 2 | . 1 . . . . . . . . . . . . . . . . . 1 . Artifact . | . . . . . . . . . . . . . . . . . . . . . Weapon 30 | 2 3 4 2 1 5 1 . 1 . 2 1 1 . . 2 2 . 1 2 . Energy Gun 15 | 1 1 1 . 1 4 1 . . . 2 . 1 . . 1 1 . . 1 . Energy Cannon 11 | . 2 2 2 . 1 . . 1 . . . . . . 1 1 . 1 . . Ballistic Gun 1 | 1 . . . . . . . . . . . . . . . . . . . . Ballistic Cannon . | . . . . . . . . . . . . . . . . . . . . . Launcher 1 | . . . . . . . . . . . . . . . . . . . 1 . Special Weapon 2 | . . 1 . . . . . . . . 1 . . . . . . . . . Impact Weapon . | . . . . . . . . . . . . . . . . . . . . . Slashing Weapon . | . . . . . . . . . . . . . . . . . . . . . Piercing Weapon . | . . . . . . . . . . . . . . . . . . . . . Special Melee Weapon . | . . . . . . . . . . . . . . . . . . . . . Unidentified Prototypes 32 | . . 2 . . 3 . . 5 . . 1 1 . . . 3 1 . 16 . Parts Lost . | . . . . . . . . . . . . . . . . . . . . . Power . | . . . . . . . . . . . . . . . . . . . . . Propulsion . | . . . . . . . . . . . . . . . . . . . . . Utility . | . . . . . . . . . . . . . . . . . . . . . Weapon . | . . . . . . . . . . . . . . . . . . . . . Highest Loss Streak . | . . . . . . . . . . . . . . . . . . . . . To Critical Strikes . | . . . . . . . . . . . . . . . . . . . . . Average Backups 3 | . 2 2 2 4 4 3 3 4 4 4 4 3 3 3 2 2 3 5 4 2 Power . | . . . . . . . . . . . . . . . . . . . . . Propulsion . | . 1 . 1 . . . . . . . . . . . . . . . . . Utility . | . . . . . . . . . . . . . . . . . . . . . Weapon 1 | . 1 1 1 2 2 2 2 3 2 2 2 2 2 2 1 1 2 2 1 . Tool/Special . | . . . . . . . . . . . . . . . . . . . . . Unused Backups 15 | . . 4 . . 1 . . . . . 1 . 1 . . . 1 . 5 2 Power . | . . . . . . . . . . . . . . . . . . . . . Propulsion 1 | . . 1 . . . . . . . . . . . . . . . . . . Utility 3 | . . 1 . . 1 . . . . . . . . . . . . . 1 . Weapon 6 | . . 1 . . . . . . . . 1 . 1 . . . 1 . 2 . Tool/Special 5 | . . 1 . . . . . . . . . . . . . . . . 2 2 Average Slot Usage (%) 88 | . 99 66 58 78 95 93 93 87 94 95 97 88 88 88 94 90 90 90 92 95 Engine 4 | . 14 12 11 14 3 . . . . . . . . . . . . . . . Reactor 5 | . . . . . 2 12 12 11 11 10 11 11 11 10 10 10 10 10 8 8 Leg 3 | . 27 . . . . . . . . . . . . . . . . . . . Hover 17 | . . 16 15 14 22 18 18 22 23 23 22 22 22 21 20 20 20 20 17 17 Device 30 | . 14 9 8 24 31 31 31 31 35 37 41 44 44 45 45 45 45 45 42 39 Processor 8 | . . . . 2 13 18 18 15 11 11 8 5 5 5 7 10 10 10 13 17 Protection 3 | . 13 8 7 6 1 . . . . . . . . . . . . . 2 4 Energy Gun 6 | . 14 . 7 9 12 12 12 4 10 11 8 . . . 5 . . . . . Energy Cannon 5 | . 12 16 7 3 . . . . . . 1 5 5 5 5 5 5 5 4 4 Peak Build Rating 195 | 8 10 49 17 38 89 89 91 103 103 117 125 130 124 127 142 142 136 143 195 182 Average Rating 81 | 4 9 13 15 29 65 88 90 88 102 108 119 122 122 124 137 134 133 137 166 182 On Entrance 90 | . 8 9 13 17 38 89 89 91 103 103 117 125 122 122 127 141 134 134 139 182 Avg Prop Armor Cover (%) 3 | . . 4 . . . . . . . 4 . . . . . . . 2 . . Naked Turns . | . . . . . . . . . . . . . . . . . . . . . Heaviest Build 94 | 8 13 28 25 32 49 49 49 52 57 64 69 69 68 71 79 79 73 74 94 92 Greatest Support 106 | 30 30 40 32 32 62 52 52 62 62 65 70 70 70 80 81 81 81 91 106 96 Greatest Overweight (x) 1 | . . . . . 1 . . . . . . . . . . . . 1 1 . Average Overweight (x) . | . . . . . . . . . . . . . . . . . . . . . Largest Inventory Capacity 10 | 5 5 5 5 7 7 7 7 10 10 10 10 10 10 10 10 10 10 10 10 10 Average Capacity 7 | 4 5 5 5 6 7 7 7 8 10 10 10 10 10 10 10 10 10 10 10 10 Most Carried 10 | 1 5 5 5 7 7 7 7 8 7 8 10 9 9 7 7 8 8 10 10 6 Average Carried 6 | . 3 3 4 6 5 6 6 7 6 6 8 7 7 7 6 6 6 8 8 6 Final Capacity 10 | 5 5 5 5 7 7 7 7 10 10 10 10 10 10 10 10 10 10 10 10 10 Final Carried 10 | 1 2 5 5 6 5 7 6 7 6 7 9 7 7 7 6 7 6 10 6 6 Transmogrified Parts 1 | . . 1 . . . . . . . . . . . . . . . . . . Class Distribution -------------------- 61% | Wizard-Scout 37% | Wizard-Mutant Dominant Class ---------------- Wizard-Mutant | -10/Materials Wizard-Mutant | -10/Subcaves Wizard-Mutant | -7/Recycling Wizard-Mutant | -7/Scraptown Wizard-Scout | -5/Factory Wizard-Scout | -5/Upper Caves Wizard-Scout | -5/Upper Caves Wizard-Scout | -5/Zhirov Wizard-Scout | -4/Proximity Caves Wizard-Scout | -4/Factory Wizard-Scout | -4/Extension Wizard-Scout | -4/Cetus Wizard-Scout | -4/Archives Wizard-Scout | -4/Hub_04(d) Wizard-Scout | -3/Research Wizard-Scout | -3/Testing Wizard-Scout | -2/Research Wizard-Scout | -2/Quarantine Wizard-Scout | -2/Protoforge Wizard-Scout | -1/Access Resources | -11 -10 -10 -7 -7 -5 -5 -5 -5 -4 -4 -4 -4 -4 -4 -3 -3 -2 -2 -2 -1 ----------- Run | Yrd Mat Sub Rec Scr Fac Upp Upp Zhi Pro Fac Ext Cet Arc Hub Res Tes Res Qua Frg Acc Matter Collected 1877 | 264 43 130 47 . 216 173 10 60 133 235 166 10 . 10 10 60 20 20 270 . Remotely . | . . . . . . . . . . . . . . . . . . . . . Salvage Created 9294 | 107 356 417 367 . 1019 168 528 120 . 899 931 268 369 551 . 297 165 74 2068 590 Parts 469 | 6 40 30 19 . 40 21 12 13 3 33 44 18 12 27 . 10 4 5 110 22 Haulers Intercepted 4 | . 2 . . . . . . . . 1 . . . 1 . . . . . . Recyclers Shooed 3 | . 1 . 2 . . . . . . . . . . . . . . . . . Parts Field Recycled . | . . . . . . . . . . . . . . . . . . . . . Retrieved Matter . | . . . . . . . . . . . . . . . . . . . . . Parts Self-Destructed . | . . . . . . . . . . . . . . . . . . . . . Prevented . | . . . . . . . . . . . . . . . . . . . . . Parts Restored . | . . . . . . . . . . . . . . . . . . . . . Kills | -11 -10 -10 -7 -7 -5 -5 -5 -5 -4 -4 -4 -4 -4 -4 -3 -3 -2 -2 -2 -1 ------- Run | Yrd Mat Sub Rec Scr Fac Upp Upp Zhi Pro Fac Ext Cet Arc Hub Res Tes Res Qua Frg Acc Combat Hostiles Destroyed 142 | . 10 14 3 . 16 7 10 . 1 10 18 4 4 7 . 2 1 . 31 4 Guns 61 | . 6 . 2 . 10 7 9 . 1 9 17 . . . . . . . . . Cannons 66 | . 4 13 1 . 3 . . . . . . 3 4 7 . 2 . . 25 4 Classes Destroyed 23 | 2 6 3 1 . 3 . 1 . 1 . . . . . . 1 . . 5 . Worker 4 | . 1 . . . . . . . . 1 . . . 2 . . . . . . Builder 7 | . . . 1 . . . . . . 1 4 . . . . . . 1 . . Tunneler 5 | 3 1 . . . . . . . . 1 . . . . . . . . . . Hauler 4 | . 2 . . . . . . . . 1 . . . 1 . . . . . . Recycler 6 | 1 . . 4 . . . . . . . 1 . . . . . . . . . Operator 6 | . . . . . 2 . . . . 1 1 . 1 1 . . . . . . Drone 2 | . . . . . . . . . . . . . . . . . . . 2 . Turret 2 | . . 2 . . . . . . . . . . . . . . . . . . Watcher 26 | . 3 . . . 4 . . . . 4 3 1 . 2 . 1 . 1 4 3 Swarmer 38 | . 6 4 . . 3 7 5 . . . 7 . . 3 . . . . 3 . Grunt 18 | . 2 1 . . 4 . 3 . . 3 3 . . 1 . . . . 1 . Duelist 3 | . . . . . . . 1 . . . 2 . . . . . . . . . Protector 1 | . . . . . . . . . . . . . . . . . . . 1 . Researcher 1 | . . . . . . . . . . . . . . . . 1 . . . . Sentry 28 | . . 1 3 . 5 . 1 . . 2 3 . 4 . . . . . 8 1 Hunter 11 | . . . . . 1 . . . . 2 1 . . 2 . 2 . . 2 1 Programmer 11 | . . . . . 3 . . . . 3 . . . 1 . . . . 2 2 Behemoth 5 | . . . . . . . . . 1 . 2 . . . . . 1 . 1 . Cetus Guard 4 | . . . . . . . . . . . . 4 . . . . . . . . Hotshot 4 | . . . . . . . . . . . . . . . . . . . 4 . Decapitator 4 | . . . . . . . . . . . . . . . . . . . 4 . Executioner 1 | . . . . . . . . . . . . . . . . . . . 1 . Alpha 7 2 | . . . . . . . . . . . . . . . . . . . 2 . Artisan 1 | . . 1 . . . . . . . . . . . . . . . . . . Subdweller 10 | . 2 8 . . . . . . . . . . . . . . . . . . Best Kill Streak 13 | 1 3 6 5 . 4 4 4 . 1 10 13 5 5 8 . 1 1 1 6 5 Combat Bots Only 10 | . 2 4 2 . 4 4 4 . 1 4 10 4 4 4 . 1 1 . 5 2 Max Kills in Single Turn 3 | 1 2 1 1 . 1 2 2 . 1 2 2 1 1 3 . 1 1 1 1 1 Gunslinging 1 | . . . . . . 1 1 . . . 1 . . . . . . . . . Exploded . | . . . . . . . . . . . . . . . . . . . . . Melee . | . . . . . . . . . . . . . . . . . . . . . Uniques/NPCs Destroyed . | . . . . . . . . . . . . . . . . . . . . . Combat | -11 -10 -10 -7 -7 -5 -5 -5 -5 -4 -4 -4 -4 -4 -4 -3 -3 -2 -2 -2 -1 -------- Run | Yrd Mat Sub Rec Scr Fac Upp Upp Zhi Pro Fac Ext Cet Arc Hub Res Tes Res Qua Frg Acc Hostile Shots Fired 1250 | . 31 67 36 3 69 8 43 . 36 86 83 43 12 50 . 5 15 166 404 93 Missed 785 | . 10 34 23 . 35 5 20 . 11 46 50 20 8 31 . 4 6 123 295 64 Hits 465 | . 21 33 13 3 34 3 23 . 25 40 33 23 4 19 . 1 9 43 109 29 Melee 2 | . . . . . . . . . . . 1 . . . . . . . 1 . Projectile 463 | . 21 33 13 3 34 3 23 . 25 40 32 23 4 19 . 1 9 43 108 29 AOE 3 | . . 1 . . . . . . . . . . . . . . . . 2 . Critical Strikes 30 | . . . . . 2 . . . 3 3 . 3 . . . . . 5 12 2 Actively Blocked 24 | . . . . . . . . . . 2 . 3 . . . . . 5 12 2 Part Disruptions 5 | . . . . . . . . . . 2 . . . . . . . 2 1 . Damage Taken 3583 | . 144 270 66 32 288 19 164 . 334 240 188 155 26 90 . 4 96 267 1037 163 Core 2713 | . 100 220 46 20 216 13 130 . 266 183 147 116 18 69 . 3 75 201 763 127 Absorbed by Shields 2520 | . . . . 13 113 8 66 . 121 252 204 167 29 99 . 5 101 284 883 175 Redirected to Core 2230 | . 67 146 40 20 203 13 93 . 238 149 121 96 18 69 . 3 64 166 633 91 Redirected to Shielding 33 | . 18 5 2 5 3 . . . . . . . . . . . . . . . Ignored by Resistances 4945 | . 108 202 46 27 281 21 172 . 393 408 342 286 50 149 . 9 167 396 1613 275 Core Remaining (%) 94 | 100 . . . 96 . . . . 100 . . . . 85 . 100 . . 100 78 Volleys Fired 703 | 10 29 62 17 . 54 18 24 30 16 44 62 32 22 23 3 11 19 6 192 29 Largest 2 | 2 2 2 1 . 2 2 2 1 2 2 2 1 1 1 1 1 1 1 1 1 Hottest 186 | 60 120 160 80 . 105 105 105 30 186 176 176 105 105 105 113 113 113 120 120 120 Shots Fired 997 | 14 58 102 24 1 115 27 48 30 32 86 123 32 22 23 3 11 19 6 192 29 Gun 500 | 14 32 . 7 1 105 27 48 30 29 86 121 . . . . . . . . . Cannon 492 | . 26 99 17 . 10 . . . 3 . 2 30 22 23 3 11 19 6 192 29 Launcher . | . . . . . . . . . . . . . . . . . . . . . Special 5 | . . 3 . . . . . . . . . 2 . . . . . . . . Kinetic 7 | 4 3 . . . . . . . . . . . . . . . . . . . Thermal 988 | 10 55 102 24 1 115 27 48 30 32 86 123 30 22 23 3 11 19 6 192 29 Explosive . | . . . . . . . . . . . . . . . . . . . . . Electromagnetic . | . . . . . . . . . . . . . . . . . . . . . Robot Hit Streak 71 | 12 19 56 20 17 36 45 45 65 34 42 48 54 71 24 . 30 10 8 46 16 Robot Miss Streak 3 | . 3 1 1 . 2 1 . 1 . 1 1 . 1 . . 1 1 . 2 3 Penetration Max . | . . . . . . . . . . . . . . . . . . . . . Secondary Targets 9 | . . . . . . 1 2 . . 2 4 . . . . . . . . . Max Gunslinging Chain 1 | . . . . . . 1 1 . . 1 1 . . . . . . . . . Capacitor 337 | . . . . . . . . . . . 2 30 22 23 3 11 19 6 192 29 Autonomous 49 | . . . 7 1 41 . . . . . . . . . . . . . . . Shots Hit Robots 816 | 12 41 67 24 1 105 20 44 28 31 55 105 29 21 20 . 8 12 4 166 23 Core Hits 356 | 5 22 22 16 . 64 12 16 20 4 33 39 8 9 13 . 5 1 1 57 9 Critical Kills 13 | . . 1 . . . . . . . 2 . 1 . 1 . . 1 1 6 . Critical Parts Destroyed 6 | . . . . . . . . . . 3 3 . . . . . . . . . Critical Strikes 39 | . . 1 . . 2 2 5 . 2 9 8 1 . 1 . . 1 1 6 . Burn 19 | . . . . . 2 2 5 . 2 4 4 . . . . . . . . . Meltdown 11 | . . 1 . . . . . . . . . 1 . 1 . . 1 1 6 . Destroy 9 | . . . . . . . . . . 5 4 . . . . . . . . . Melee Attacks . | . . . . . . . . . . . . . . . . . . . . . Impact . | . . . . . . . . . . . . . . . . . . . . . Slashing . | . . . . . . . . . . . . . . . . . . . . . Piercing . | . . . . . . . . . . . . . . . . . . . . . Sneak Attacks . | . . . . . . . . . . . . . . . . . . . . . Combat Hostiles . | . . . . . . . . . . . . . . . . . . . . . Follow-up Attacks . | . . . . . . . . . . . . . . . . . . . . . Damage Inflicted 33417 | 151 754 1657 644 37 2730 428 1253 277 1179 2817 4269 1476 1045 1272 . 475 811 254 10267 1621 Guns 12532 | 151 359 . 104 24 2403 428 1253 277 1064 2257 4212 . . . . . . . . . Cannons 20037 | . 390 1657 523 . 327 . . . 115 . 57 1476 1045 1036 . 475 811 254 10267 1604 Explosions 762 | . . . . . . . . . . 526 . . . 236 . . . . . . Melee . | . . . . . . . . . . . . . . . . . . . . . Ramming 86 | . 5 . 17 13 . . . . . 34 . . . . . . . . . 17 Kinetic 32 | 18 14 . . . . . . . . . . . . . . . . . . . Thermal 32537 | 133 735 1657 627 24 2730 428 1253 277 1179 2257 4269 1476 1045 1036 . 475 811 254 10267 1604 Explosive 526 | . . . . . . . . . . 526 . . . . . . . . . . Electromagnetic 236 | . . . . . . . . . . . . . . 236 . . . . . . Impact . | . . . . . . . . . . . . . . . . . . . . . Slashing . | . . . . . . . . . . . . . . . . . . . . . Piercing . | . . . . . . . . . . . . . . . . . . . . . Highest Corruption 4 | . . . . . 1 1 1 1 1 4 4 . . 1 . . . . . . Average Corruption 1 | . . . . . 1 1 1 1 1 1 3 . . 1 . . . . . . Corruption Purged 4 | . . . . . . . . . . . 4 . . . . . . . . . Corruption Blocked 6 | . . . . . . . . . . . . . . . . 4 . 1 1 . Effects 28 | . . . . . 4 6 . . 1 8 9 . . . . . . . . . Message Errors 4 | . . . . . . 1 . . 1 1 1 . . . . . . . . . Matter Fused 10 | . . . . . 2 2 . . . 3 3 . . . . . . . . . Heat Flow Errors 6 | . . . . . 1 1 . . . 1 3 . . . . . . . . . Energy Discharges 1 | . . . . . . . . . . 1 . . . . . . . . . . Parts Rejected 1 | . . . . . 1 . . . . . . . . . . . . . . . Parts Fused 1 | . . . . . . 1 . . . . . . . . . . . . . . Data Loss (minor) 1 | . . . . . . . . . . . 1 . . . . . . . . . Data Loss (major) 1 | . . . . . . . . . . 1 . . . . . . . . . . Misfires 2 | . . . . . . 1 . . . . 1 . . . . . . . . . Weapon Failures 1 | . . . . . . . . . . 1 . . . . . . . . . . Overload Shots . | . . . . . . . . . . . . . . . . . . . . . Overflow Damage 495 | . . . 18 . 11 . . . . . . 5 22 44 . . . 46 287 62 Projectiles 483 | . . . 18 . 11 . . . . . . 5 22 32 . . . 46 287 62 Explosions 12 | . . . . . . . . . . . . . . 12 . . . . . . Melee . | . . . . . . . . . . . . . . . . . . . . . Knockbacks . | . . . . . . . . . . . . . . . . . . . . . Impact . | . . . . . . . . . . . . . . . . . . . . . Kinetic . | . . . . . . . . . . . . . . . . . . . . . Secondary . | . . . . . . . . . . . . . . . . . . . . . Self-Inflicted Damage 100 | . . . 8 6 . . . . . 17 . . . 61 . . . . . 8 Shots 1 | . . . . . . . . . . . . . . 1 . . . . . . Rammed 5 | . . . 2 1 . . . . . 1 . . . . . . . . . 1 Targets Rammed 7 | . 2 . 2 1 . . . . . 1 . . . . . . . . . 1 Kicked 2 | . 2 . . . . . . . . . . . . . . . . . . . Crushed . | . . . . . . . . . . . . . . . . . . . . . Highest Temperature 368 | . . 7 340 . 31 105 . . 78 167 241 171 118 152 85 108 169 . 6 368 Average Temperature 88 | . . 4 201 . 9 76 . . 49 110 81 92 59 53 45 46 78 . 3 153 Received Heat Transfer 879 | . 24 177 36 26 42 . 54 . 172 57 28 4 8 4 . . 36 40 167 4 Effects 2 | . . . 1 . . . . . . . . . . . . . . . . 1 Shutdowns 2 | . . . 1 . . . . . . . . . . . . . . . . 1 Siege Activations . | . . . . . . . . . . . . . . . . . . . . . Martial Activations . | . . . . . . . . . . . . . . . . . . . . . Shielding Activations . | . . . . . . . . . . . . . . . . . . . . . Robots Disrupted . | . . . . . . . . . . . . . . . . . . . . . Combat Hostiles . | . . . . . . . . . . . . . . . . . . . . . Robots Corrupted . | . . . . . . . . . . . . . . . . . . . . . Combat Hostiles . | . . . . . . . . . . . . . . . . . . . . . Parts Fried 2 | . . . . . . . . . . . . . . 2 . . . . . . Impact Corruptions . | . . . . . . . . . . . . . . . . . . . . . Robots Melted 17 | . . 1 . . 3 . 1 . . 1 1 1 . 1 . . 1 1 6 . Combat Hostiles 13 | . . 1 . . 3 . 1 . . 1 1 1 . . . . 1 . 4 . Parts Melted 87 | . 2 3 3 . 29 1 15 1 . 8 5 . 1 1 . 1 4 1 10 2 Heat Transferred 32909 | 250 1349 2331 1123 15 5573 895 2349 472 1516 2812 4144 999 703 666 . 296 444 148 5973 851 Parts Sabotaged . | . . . . . . . . . . . . . . . . . . . . . Parts Stolen . | . . . . . . . . . . . . . . . . . . . . . Parts Stripped . | . . . . . . . . . . . . . . . . . . . . . Power Chain Reactions 1 | . . . . . . . . . . . . . . 1 . . . . . . Alert | -11 -10 -10 -7 -7 -5 -5 -5 -5 -4 -4 -4 -4 -4 -4 -3 -3 -2 -2 -2 -1 ------- Run | Yrd Mat Sub Rec Scr Fac Upp Upp Zhi Pro Fac Ext Cet Arc Hub Res Tes Res Qua Frg Acc Maximum Alert Level 1 | . . . . . . . . . . . 1 . . 1 . . . . . . Low Security (%) 99 | 100 100 . 100 . 100 . . . . 100 97 100 100 98 100 100 100 100 100 100 Level 1 . | . . . . . . . . . . . 2 . . 1 . . . . . . Level 2 . | . . . . . . . . . . . . . . . . . . . . . Level 3 . | . . . . . . . . . . . . . . . . . . . . . Level 4 . | . . . . . . . . . . . . . . . . . . . . . Level 5 . | . . . . . . . . . . . . . . . . . . . . . High Security . | . . . . . . . . . . . . . . . . . . . . . Max Security . | . . . . . . . . . . . . . . . . . . . . . Peak Influence 335 | 5 51 . 57 . 137 . . . . 145 213 65 85 335 130 52 33 105 176 88 Initial 130 | . . . 57 . . . . . . . 48 . 12 18 130 43 6 7 44 2 Average 30 | 1 7 . 11 . 32 . . . . 28 70 37 51 53 110 17 4 22 40 31 Influence Increases 4879 | 20 269 250 85 . 602 165 235 5 30 571 548 118 93 410 19 107 63 259 843 187 Destroy 0b10 Robot/C 2640 | . 160 160 60 . 320 140 200 . 20 200 360 80 80 140 . 60 20 . 560 80 Destroy 0b10 Robot/NC 315 | 20 35 . 25 . 30 5 . 5 . 45 45 5 5 30 . 5 . 10 35 15 Destroy Leader 528 | . 50 . . . 118 20 20 . 10 60 56 . . 36 . 12 10 2 108 26 Trap Triggered on 0b10 80 | . 20 . . . . . . . . 50 . . . . . . . . 10 . Successful Hack 121 | . . . . . . . . . . 21 21 . . . . 22 12 . 21 24 Disable Machine 116 | . . . . . 4 . . . . 20 16 8 4 24 . 8 . 4 28 . Destroy Structure 419 | . 4 . . . 10 . . . . 100 20 10 4 180 4 . 21 3 51 12 Partial Spotted 150 | . . . . . 60 . . . . . . 15 . . 15 . . . 30 30 Lose Combat Pursuer 510 | . . 90 . . 60 . 15 . . 75 30 . . . . . . 240 . . Influence Decreases 4879 | 20 269 85 250 . 561 206 115 125 30 435 684 75 61 150 250 195 61 172 942 193 Entered New Map 778 | . . . 108 . . 22 . 120 . . 88 . 31 57 205 61 10 11 61 4 Time Decay 3278 | 20 269 85 127 . 539 184 105 5 30 291 329 75 30 75 45 97 51 116 704 101 Lost Ally 20 | . . . . . . . 10 . . 10 . . . . . . . . . . Purge Threat 803 | . . . 15 . 22 . . . . 134 267 . . 18 . 37 . 45 177 88 Squads Dispatched 36 | . . . . . 7 . 1 . . 7 1 . . 3 . 3 1 4 6 3 Investigation 11 | . . . . . 3 . . . . 4 . . . . . . 1 . 3 . Extermination 12 | . . . . . 3 . . . . 3 . . . . . 1 . 2 2 1 Reinforcement 10 | . . . . . . . . . . . 1 . . 3 . 2 . 2 1 1 Assault 1 | . . . . . . . 1 . . . . . . . . . . . . . Garrison 2 | . . . . . 1 . . . . . . . . . . . . . . 1 Intercept . | . . . . . . . . . . . . . . . . . . . . . Searches Triggered . | . . . . . . . . . . . . . . . . . . . . . Construction Impeded 1 | . . . . . . . . . . . . . . 1 . . . . . . Haulers Reinforced . | . . . . . . . . . . . . . . . . . . . . . Active Scanning Responses . | . . . . . . . . . . . . . . . . . . . . . Cargo Convoy Interrupts 1 | . . . . . . . . . . 1 . . . . . . . . . . Stealth | -11 -10 -10 -7 -7 -5 -5 -5 -5 -4 -4 -4 -4 -4 -4 -3 -3 -2 -2 -2 -1 --------- Run | Yrd Mat Sub Rec Scr Fac Upp Upp Zhi Pro Fac Ext Cet Arc Hub Res Tes Res Qua Frg Acc Distress Signals 14 | . 3 . . . 1 . . . . 1 1 1 . . . . . . 5 2 Communications Jammed . | . . . . . . . . . . . . . . . . . . . . . Distress Signals . | . . . . . . . . . . . . . . . . . . . . . Times Spotted 339 | . 17 18 3 4 26 6 11 . 1 29 23 5 8 13 1 2 1 22 112 37 Peak Tracking Total 14 | . 3 4 2 3 5 4 5 . 1 7 7 5 1 5 1 1 1 11 14 14 Tactical Retreats 30 | . 1 2 . . 1 . 1 . . 3 1 . . . . . . 5 13 3 ECM-based Alert Blocks 70 | . . . . . . . . . . . . . . . . . . . 49 21 Traps | -11 -10 -10 -7 -7 -5 -5 -5 -5 -4 -4 -4 -4 -4 -4 -3 -3 -2 -2 -2 -1 ------- Run | Yrd Mat Sub Rec Scr Fac Upp Upp Zhi Pro Fac Ext Cet Arc Hub Res Tes Res Qua Frg Acc Traps Triggered 10 | . 1 . . . 4 . . . . 2 1 . . . . . . . 2 . Indirectly . | . . . . . . . . . . . . . . . . . . . . . Trap Hack Attempts . | . . . . . . . . . . . . . . . . . . . . . Triggered . | . . . . . . . . . . . . . . . . . . . . . Disarmed 42 | . 8 . . . . . . . . 13 . . . . . 5 . 12 . 4 Reprogrammed 17 | . 4 . . . . . . . . 5 . . . . . . . . 8 . Reused 8 | . 2 . . . . . . . . 5 . . . . . . . . 1 . Traps Extracted . | . . . . . . . . . . . . . . . . . . . . . Installed . | . . . . . . . . . . . . . . . . . . . . . Triggered 8 | . 2 . . . . . . . . 5 . . . . . . . . 1 . Machines | -11 -10 -10 -7 -7 -5 -5 -5 -5 -4 -4 -4 -4 -4 -4 -3 -3 -2 -2 -2 -1 ---------- Run | Yrd Mat Sub Rec Scr Fac Upp Upp Zhi Pro Fac Ext Cet Arc Hub Res Tes Res Qua Frg Acc Machines Disabled 31 | . . 1 . . 1 . 1 . . 5 4 2 1 6 . 2 . 1 7 . Max in Single Turn 5 | . . 1 . . 1 . 1 . . 2 2 1 1 5 . 1 . 1 1 . Garrison Access 5 | . . . . . 2 . . . . . . . . 1 . . 1 . 1 . Network Hub 1 | . . . . . . . . . . . . . . 1 . . . . . . Energy Cycler 1 | . . . . . . . . . . . 1 . . . . . . . . . Machines Repaired . | . . . . . . . . . . . . . . . . . . . . . Machines Dismantled . | . . . . . . . . . . . . . . . . . . . . . Machines Sabotaged . | . . . . . . . . . . . . . . . . . . . . . Overloaded Fab Kills . | . . . . . . . . . . . . . . . . . . . . . Hacking | -11 -10 -10 -7 -7 -5 -5 -5 -5 -4 -4 -4 -4 -4 -4 -3 -3 -2 -2 -2 -1 --------- Run | Yrd Mat Sub Rec Scr Fac Upp Upp Zhi Pro Fac Ext Cet Arc Hub Res Tes Res Qua Frg Acc Machines Accessed 97 | . 8 . 2 10 13 1 1 5 . 15 9 2 . 3 1 4 3 4 12 4 Terminals 55 | . 8 . 2 . 5 . . . . 8 8 2 . 2 . 4 1 4 7 4 Fabricators 3 | . . . . . 2 . . . . 1 . . . . . . . . . . Repair Stations 1 | . . . . . . . . . . . 1 . . . . . . . . . Recycling Units 11 | . . . . . 3 . . . . 4 . . . . . . 1 . 3 . Scanalyzers 5 | . . . . . 1 . . . . 2 . . . . 1 . . . 1 . Garrison Access 5 | . . . . . 2 . . . . . . . . 1 . . 1 . 1 . Total Hacks 310 | . 24 . 7 62 27 1 1 16 . 38 25 5 . 14 3 18 7 16 31 15 Successful 258 | . 22 . 2 62 25 1 1 16 . 34 19 5 . 8 3 11 5 10 23 11 Failed 52 | . 2 . 5 . 2 . . . . 4 6 . . 6 . 7 2 6 8 4 Catastrophic 6 | . . . . . . . . . . . . . . 2 . 2 1 . 1 . Database Lockouts . | . . . . . . . . . . . . . . . . . . . . . Manual 133 | . 22 . 6 . 15 . . . . 19 9 . . 12 . 10 4 9 21 6 Terminals 194 | . 24 . 7 . 14 . . . . 29 24 5 . 13 . 18 5 16 24 15 Fabricators 6 | . . . . . 4 . . . . 2 . . . . . . . . . . Repair Stations 1 | . . . . . . . . . . . 1 . . . . . . . . . Recycling Units 11 | . . . . . 3 . . . . 4 . . . . . . 1 . 3 . Scanalyzers 13 | . . . . . 4 . . . . 3 . . . . 3 . . . 3 . Garrison Access 5 | . . . . . 2 . . . . . . . . 1 . . 1 . 1 . Terminal Hacks 198 | . 12 . 2 62 7 1 1 16 . 21 18 5 . 6 . 11 3 9 13 11 Record 68 | . . . . 55 . . 1 6 . . . 4 . . . . . 1 1 . Part Schematic 5 | . . . . . 1 . . 2 . . 2 . . . . . . . . . Robot Schematic 1 | . . . . . . . . . . . 1 . . . . . . . . . Robot Analysis 11 | . . . . 6 . . . 4 . 1 . . . . . . . . . . Prototype ID Bank 6 | . . . . . . . . 4 . 1 1 . . . . . . . . . Open Door 8 | . . . . . . 1 . . . 1 3 1 . . . 1 . . . 1 Level Access Points 3 | . . . . . . . . . . . . . . 1 . 1 . . . 1 Branch Access Points 5 | . . . . . . . . . . . 1 . . . . 1 1 1 . 1 Emergency Access Points 3 | . . . . . . . . . . 1 . . . 1 . . . . 1 . Machine Index 4 | . 1 . . . 1 . . . . . 1 . . . . . 1 . . . Terminal Index 1 | . . . . . . . . . . . . . . . . . . . . 1 Recycling Unit Index 2 | . . . . . . . . . . 1 . . . . . . . . 1 . Garrison Index 1 | . . . . . . . . . . . . . . . . . . . . 1 Alert Level 3 | . . . . . 1 . . . . . . . . 1 . . . . 1 . Unreport Threat 25 | . 3 . 2 . 2 . . . . 5 4 . . 1 . 1 . 2 3 2 Locate Traps 3 | . 1 . . . . . . . . 1 1 . . . . . . . . . Disarm Traps 14 | . 2 . . . . . . . . 4 . . . . . 2 . 4 . 2 Reprogram Traps 6 | . 1 . . . . . . . . 2 . . . . . . . . 3 . Dispatch Records 1 | . . . . . . . . . . . 1 . . . . . . . . . Patrol Status 2 | . 1 . . . . . . . . . . . . . . . . . 1 . Extermination Status 1 | . . . . . . . . . . . . . . . . 1 . . . . Recall Investigation 7 | . 1 . . . 2 . . . . 3 . . . . . . 1 . . . Recall Extermination 4 | . 1 . . . . . . . . . . . . . . 1 . . 1 1 Recall Reinforcements 7 | . 1 . . . . . . . . . 2 . . 1 . 1 . 1 1 . Registered Components 1 | . . . . . . . . . . . 1 . . . . . . . . . Zone Layout 5 | . . . . . . . . . . 1 . . . 1 . 2 . . . 1 Proto ID Catalog 1 | . . . . 1 . . . . . . . . . . . . . . . . Fabricator Hacks 6 | . . . . . 4 . . . . 2 . . . . . . . . . . Network Status 1 | . . . . . 1 . . . . . . . . . . . . . . . Load Schematic 2 | . . . . . 1 . . . . 1 . . . . . . . . . . Build 3 | . . . . . 2 . . . . 1 . . . . . . . . . . Repair Station Hacks 1 | . . . . . . . . . . . 1 . . . . . . . . . Scan Component 1 | . . . . . . . . . . . 1 . . . . . . . . . Recycling Unit Hacks . | . . . . . . . . . . . . . . . . . . . . . Scanalyzer 13 | . . . . . 4 . . . . 3 . . . . 3 . . . 3 . Insert Component 1 | . . . . . . . . . . . . . . . 1 . . . . . Retrieve Study 12 | . . . . . 4 . . . . 3 . . . . 2 . . . 3 . Garrison Access Hacks 5 | . . . . . 2 . . . . . . . . 1 . . 1 . 1 . Seal Access 5 | . . . . . 2 . . . . . . . . 1 . . 1 . 1 . Unauthorized Hacks 35 | . 10 . . . 8 . . . . 8 . . . 1 . . 1 1 6 . Terminals 24 | . 10 . . . 5 . . . . 4 . . . 1 . . . 1 3 . Assimilate 6 | . . . . . 1 . . . . 3 . . . 1 . . . 1 . . Botnet 8 | . 5 . . . 1 . . . . . . . . . . . . . 2 . Disrupt 1 | . . . . . . . . . . . . . . . . . . . 1 . Skim 9 | . 5 . . . 3 . . . . 1 . . . . . . . . . . Fabricators . | . . . . . . . . . . . . . . . . . . . . . Repair Stations . | . . . . . . . . . . . . . . . . . . . . . Recycling Units 11 | . . . . . 3 . . . . 4 . . . . . . 1 . 3 . Fedlink 11 | . . . . . 3 . . . . 4 . . . . . . 1 . 3 . Scanalyzers . | . . . . . . . . . . . . . . . . . . . . . Garrison Access . | . . . . . . . . . . . . . . . . . . . . . Data Cores Recovered 3 | . . . . . 2 . . . . 1 . . . . . . . . . . Used 1 | . . . . . 1 . . . . . . . . . . . . . . . Hacking Detections 28 | . 3 . 1 . 1 . . . . 4 5 . . 2 1 1 1 1 5 3 Full Trace Events . | . . . . . . . . . . . . . . . . . . . . . Feedback Events . | . . . . . . . . . . . . . . . . . . . . . Feedback Blocked . | . . . . . . . . . . . . . . . . . . . . . Robot Schematics Acquired 2 | . . . . . . . . . . . 1 . . . . 1 . . . . Robots Built . | . . . . . . . . . . . . . . . . . . . . . Authchips . | . . . . . . . . . . . . . . . . . . . . . Time . | . . . . . . . . . . . . . . . . . . . . . Total Robot Build Rating . | . . . . . . . . . . . . . . . . . . . . . Part Schematics Acquired 8 | . . . . . 1 . . 2 . . 2 . . . . 3 . . . . Parts Built 5 | . . . . . 4 . . . . 1 . . . . . . . . . . Authchips . | . . . . . . . . . . . . . . . . . . . . . Time 185 | . . . . . 127 . . . . 58 . . . . . . . . . . Total Part Build Rating 39 | . . . . . 32 . . . . 7 . . . . . . . . . . Part Studies Acquired 11 | . . . . . 3 . . . . 3 . . . . 2 . . . 3 . Parts Repaired . | . . . . . . . . . . . . . . . . . . . . . Time . | . . . . . . . . . . . . . . . . . . . . . Parts Recycled . | . . . . . . . . . . . . . . . . . . . . . Recycled Matter . | . . . . . . . . . . . . . . . . . . . . . Retrieved Matter . | . . . . . . . . . . . . . . . . . . . . . Retrieved Components . | . . . . . . . . . . . . . . . . . . . . . Parts Scanalyzed . | . . . . . . . . . . . . . . . . . . . . . Part Schematics Acquired . | . . . . . . . . . . . . . . . . . . . . . Parts Damaged . | . . . . . . . . . . . . . . . . . . . . . Bothacking | -11 -10 -10 -7 -7 -5 -5 -5 -5 -4 -4 -4 -4 -4 -4 -3 -3 -2 -2 -2 -1 ------------ Run | Yrd Mat Sub Rec Scr Fac Upp Upp Zhi Pro Fac Ext Cet Arc Hub Res Tes Res Qua Frg Acc Used RIF Installer . | . . . . . . . . . . . . . . . . . . . . . Robots Hacked . | . . . . . . . . . . . . . . . . . . . . . Non-combat . | . . . . . . . . . . . . . . . . . . . . . Combat . | . . . . . . . . . . . . . . . . . . . . . Robot Hacks Applied . | . . . . . . . . . . . . . . . . . . . . . Relay Couplers Released . | . . . . . . . . . . . . . . . . . . . . . Fabnet Peak Effective % . | . . . . . . . . . . . . . . . . . . . . . Robots Rewired . | . . . . . . . . . . . . . . . . . . . . . Allies Hacked 1 | . . . . . . . . . . 1 . . . . . . . . . . Hacks Repelled . | . . . . . . . . . . . . . . . . . . . . . Allies | -11 -10 -10 -7 -7 -5 -5 -5 -5 -4 -4 -4 -4 -4 -4 -3 -3 -2 -2 -2 -1 -------- Run | Yrd Mat Sub Rec Scr Fac Upp Upp Zhi Pro Fac Ext Cet Arc Hub Res Tes Res Qua Frg Acc Total Allies 4 | . . . . . 1 . . . . 3 . . . . . . . . . . Largest Group 1 | . . . . . 1 1 1 . . 1 . . . . . . . . . . Highest-Rated Group 45 | . . . . . 10 10 10 . . 45 . . . . . . . . . . Highest-Rated Ally 45 | . . . . . 10 10 10 . . 45 . . . . . . . . . . Initial UFD Resources 106 | . . . . . 39 55 55 55 59 59 77 77 77 77 80 80 84 94 94 106 Total Orders . | . . . . . . . . . . . . . . . . . . . . . Ally Attacks . | . . . . . . . . . . . . . . . . . . . . . Total Damage . | . . . . . . . . . . . . . . . . . . . . . Kills . | . . . . . . . . . . . . . . . . . . . . . Allies Corrupted 1 | . . . . . . . . . . 1 . . . . . . . . . . Allies Melted 1 | . . . . . . . . . . . 1 . . . . . . . . . Intel | -11 -10 -10 -7 -7 -5 -5 -5 -5 -4 -4 -4 -4 -4 -4 -3 -3 -2 -2 -2 -1 ------- Run | Yrd Mat Sub Rec Scr Fac Upp Upp Zhi Pro Fac Ext Cet Arc Hub Res Tes Res Qua Frg Acc Active Infowar (turns) 8485 | 25 1075 309 58 831 1175 361 184 164 257 818 638 126 48 161 78 216 195 267 1313 186 Terrain 7741 | 25 1075 309 58 831 1175 361 184 164 257 818 638 126 48 161 78 216 195 267 755 . Traps 2346 | . . . . . . . . . . . . . . 91 78 216 195 267 1313 186 ECM 1024 | . . . . . . . . . . . . . . . . . . . 838 186 Robot Analysis Total 11 | . . . . 6 . . . 4 . 1 . . . . . . . . . . Derelict Logs Recovered 8 | . . 2 . 1 . 1 1 . 3 . . . . . . . . . . . Drone Launches . | . . . . . . . . . . . . . . . . . . . . . Drone Recoveries . | . . . . . . . . . . . . . . . . . . . . . Exploration | -11 -10 -10 -7 -7 -5 -5 -5 -5 -4 -4 -4 -4 -4 -4 -3 -3 -2 -2 -2 -1 ------------- Run | Yrd Mat Sub Rec Scr Fac Upp Upp Zhi Pro Fac Ext Cet Arc Hub Res Tes Res Qua Frg Acc Turns Passed 9606 | 208 1075 876 414 831 1178 361 184 164 257 830 638 126 48 161 78 216 195 267 1313 186 Spaces Moved 14276 | 149 776 1076 621 1436 1576 766 310 280 520 1411 977 184 48 271 175 410 275 588 2043 384 Core 5 | 5 . . . . . . . . . . . . . . . . . . . . Treads . | . . . . . . . . . . . . . . . . . . . . . Legs 910 | 144 766 . . . . . . . . . . . . . . . . . . . Wheels 34 | . . 34 . . . . . . . . . . . . . . . . . . Hover 13327 | . 10 1042 621 1436 1576 766 310 280 520 1411 977 184 48 271 175 410 275 588 2043 384 Flight . | . . . . . . . . . . . . . . . . . . . . . Fastest Speed 31 | 50 56 56 56 56 33 38 38 33 33 33 40 40 40 40 40 40 40 40 31 40 Average Speed 47 | 117 119 56 56 56 39 38 38 34 33 34 40 40 40 40 40 40 40 40 40 40 Slowest Speed 120 | 120 120 80 56 56 120 38 38 38 33 48 40 40 40 40 40 40 40 101 95 40 Overloaded Moves 228 | . . . . . . . . . . . . . . . . . . . 228 . Propulsion Burnouts . | . . . . . . . . . . . . . . . . . . . . . Robots Hopped . | . . . . . . . . . . . . . . . . . . . . . Potential Cave-ins 5 | . . . . . . . . . . 2 . . . . . . . . . 3 Cave-ins Triggered . | . . . . . . . . . . . . . . . . . . . . . Exploration Rate (%) 59 | 5 89 78 95 91 40 86 61 60 77 44 96 81 73 39 4 60 10 81 60 17 Regions Visited 20 Branch Regions 14 Pre-discovered Areas 7 | . 2 1 . . 1 . . 3 . . . . . . . . . . . . Known Exits Taken 20 | 1 1 1 1 1 1 1 1 1 1 1 1 1 1 1 1 1 1 1 1 . Unknown Exits Taken . | . . . . . . . . . . . . . . . . . . . . . Scrap Searched 15 | . . 5 . 2 . 3 2 . 3 . . . . . . . . . . . Spaces Dug 39 | . . 8 . . 3 . . . . 18 . . . . . . 2 1 7 . Terrain Destroyed 250 | . . 16 . . 4 2 . . . 53 10 1 2 129 3 . 7 1 18 4 Melee . | . . . . . . . . . . . . . . . . . . . . . Projectile 95 | . . 16 . . 4 2 . . . 27 8 1 2 2 3 . 7 1 18 4 AOE 155 | . . . . . . . . . . 26 2 . . 127 . . . . . . Terrain Rammed . | . . . . . . . . . . . . . . . . . . . . . Walls Destroyed . | . . . . . . . . . . . . . . . . . . . . . Machines Disabled . | . . . . . . . . . . . . . . . . . . . . . Actions | -11 -10 -10 -7 -7 -5 -5 -5 -5 -4 -4 -4 -4 -4 -4 -3 -3 -2 -2 -2 -1 --------- Run | Yrd Mat Sub Rec Scr Fac Upp Upp Zhi Pro Fac Ext Cet Arc Hub Res Tes Res Qua Frg Acc Total 16633 | 165 869 1235 671 1463 2081 823 346 339 585 1693 1144 236 77 322 182 464 361 616 2546 415 Wait 958 | . 36 40 7 4 342 28 1 . 24 201 54 5 4 28 . 24 52 14 92 2 Move 14254 | 148 775 1075 620 1436 1574 765 309 279 519 1409 976 183 47 270 174 409 274 587 2042 383 Hop . | . . . . . . . . . . . . . . . . . . . . . Pick Up 82 | 1 3 8 3 4 9 3 1 4 1 2 7 1 2 . . 1 2 4 26 . Fast Attach 101 | 6 4 7 5 7 19 . . 10 1 8 6 1 . 1 2 3 1 1 19 . Attach 33 | . 2 4 . . 6 2 . 3 2 1 2 . . . 1 1 1 1 7 . Detach 68 | . 2 10 1 3 11 1 . 5 1 4 4 1 . . 1 5 2 2 15 . Swap 6 | . . . . . 3 . . . . 2 . . . . . . . . 1 . Drop 134 | . 5 9 7 6 23 1 2 8 1 6 9 4 2 . 1 4 4 1 41 . Fire 703 | 10 29 62 17 . 54 18 24 30 16 44 62 32 22 23 3 11 19 6 192 29 Melee . | . . . . . . . . . . . . . . . . . . . . . Ram 4 | . . . 2 . . . . . . 1 . . . . . . . . . 1 Kick 2 | . 2 . . . . . . . . . . . . . . . . . . . Crush . | . . . . . . . . . . . . . . . . . . . . . Escape Stasis 32 | . . . . . 13 . . . . 1 13 . . . . . . . 5 . Rewire . | . . . . . . . . . . . . . . . . . . . . . Trap . | . . . . . . . . . . . . . . . . . . . . . Miscellaneous 256 | . 11 20 9 3 27 5 9 . 20 14 11 9 . . . 6 6 . 106 . Route ------- -11/Scrapyard -10/Materials (discovered 6 exits: *Mat x3 / *Min x2 / *Sub) -10/Subcaves (discovered 3 exits: *Mat x2 / *Rec) -7/Recycling (discovered 2 exits: *Fac / *Scr) -7/Scraptown (discovered 2 exits: *Fac x2) -5/Factory (discovered 4 exits: *Fac x2 / *Upp x2) -5/Upper Caves -5/Upper Caves (discovered 2 exits: *Fac / *Zhi) -5/Zhirov -4/Proximity Caves -4/Factory (discovered 7 exits: *Res x4 / Upp / *Ext / Arm) -4/Extension (discovered 3 exits: *Res x2 / *Cet) -4/Cetus -4/Archives (discovered 3 exits: Res / *Hub x2) -4/Hub_04(d) (discovered 4 exits: *Res x4) -3/Research (discovered 3 exits: Res x2 / *Tes) -3/Testing -2/Research (discovered 2 exits: *Qua x2) -2/Quarantine (discovered 3 exits: *Acc / *Sec / *Frg) -2/Protoforge -1/Access (discovered 2 exits: *Sur / Com) To Epsilon Eridani History --------- Turn | Location | Event 5 | -11/Scrapyard | Identified exit to Materials 5 | -11/Scrapyard | Discovered exit to Materials (range 15) 10 | -11/Scrapyard | Upgraded with Propulsion slot (x1) 10 | -11/Scrapyard | Upgraded with Utility slot (x1) 10 | -11/Scrapyard | Upgraded with Weapon slot (x1) 209 | -11/Scrapyard | Entered Materials 316 | -10/Materials | Build established: Wizard-Mutant 333 | -10/Materials | Identified exit to Mines 333 | -10/Materials | Discovered exit to Mines (range 10) 512 | -10/Materials | Identified exit to Materials 512 | -10/Materials | Discovered exit to Materials (range 9) 573 | -10/Materials | Identified exit to Subcaves 573 | -10/Materials | Discovered exit to Subcaves (range 13) 622 | -10/Materials | Discovered exit to Mines (range 13) 855 | -10/Materials | Discovered exit to Materials (range 16) 931 | -10/Materials | Discovered exit to Materials (range 15) 1009 | -10/Materials | Derelicts attacked the area 1020 | -10/Materials | Learned 2 Storage zone layouts 1048 | -10/Materials | Learned 4 Recycling zone layouts 1067 | -10/Materials | Learned location of Mines (-8) 1082 | -10/Materials | Learned Storage emergency access door positions 1097 | -10/Materials | Learned location of 2 exits from Materials 1123 | -10/Materials | Learned location of Recycling (-7) 1161 | -10/Materials | Learned location of 2 exits from Materials 1284 | -10/Materials | Entered Subcaves 1286 | -10/Subcaves | Reached level 2 1317 | -10/Subcaves | Identified exit to Materials 1317 | -10/Subcaves | Discovered exit to Materials (range 14) 1387 | -10/Subcaves | Upgraded with Propulsion slot (x1) 1387 | -10/Subcaves | Upgraded with Utility slot (x2) 1406 | -10/Subcaves | A swath of the cavern ceiling suddenly collapsed 1482 | -10/Subcaves | Visited 4L-MR0's lab 1491 | -10/Subcaves | Found Prototype Device 1491 | -10/Subcaves | Identified Sfc. Transmogrifier 1498 | -10/Subcaves | Upgraded with Propulsion slot (x1) 1499 | -10/Subcaves | Upgraded with Utility slot (x1) 1500 | -10/Subcaves | Found Prototype Wheel 1500 | -10/Subcaves | Identified Maxwheels 1501 | -10/Subcaves | Attached Maxwheels, gained temporary slots: Weapon x2 1558 | -10/Subcaves | Discovered exit to Materials (range 13) 1586 | -10/Subcaves | Shifting Twisted Machinery released Spk. Treads 1588 | -10/Subcaves | Shifting Twisted Machinery released Battle Rifle 1653 | -10/Subcaves | Learned location of Zion (-7) 1653 | -10/Subcaves | Met a Zionite searching for "candidates" 1662 | -10/Subcaves | Learned Materials trap positions 1727 | -10/Subcaves | Ambushed by Subdwellers from Twisted Machinery 1756 | -10/Subcaves | Upgraded with Power slot (x1) 1870 | -10/Subcaves | Shifting Twisted Machinery released Riot Gun 1884 | -10/Subcaves | Shifting Twisted Machinery released Sub. Beam Cannon 1972 | -10/Subcaves | A swath of the cavern ceiling suddenly collapsed 2018 | -10/Subcaves | Identified exit to Recycling 2160 | -10/Subcaves | Entered Recycling 2161 | -7/Recycling | Identified exit to Scraptown 2162 | -7/Recycling | Reached level 3 2162 | -7/Recycling | Reached level 4 2162 | -7/Recycling | Reached level 5 2162 | -7/Recycling | Reached level 6 2162 | -7/Recycling | Reached level 7 2162 | -7/Recycling | Reached level 8 2355 | -7/Recycling | Identified exit to Factory 2355 | -7/Recycling | Discovered exit to Factory (range 7) 2559 | -7/Recycling | Scanned before Scraplab entrance 2567 | -7/Recycling | Entered Scraplab 2574 | -7/Recycling | Entered Scraptown 2576 | -7/Scraptown | Reached level 9 2716 | -7/Scraptown | Discovered exit to Factory (range 8) 2748 | -7/Scraptown | Scanned Subdweller tech in exchange for log data 2770 | -7/Scraptown | Visited Cyclists 2784 | -7/Scraptown | Visited Shadow of the Wyrm 2807 | -7/Scraptown | Visited UFD Registry 2807 | -7/Scraptown | Registered with UFD as "Megaface" 2830 | -7/Scraptown | Entered Cyclist Reading Room 2848 | -7/Scraptown | Visited Symbiants 2890 | -7/Scraptown | Visited Assassins FH 2899 | -7/Scraptown | Visited Cave Peace 3020 | -7/Scraptown | Visited Modified Component R&D 3055 | -7/Scraptown | Visited Analyses Database 3069 | -7/Scraptown | Visited Junk Repository 3090 | -7/Scraptown | Visited Junk Repository 3098 | -7/Scraptown | Discovered exit to Factory (range 14) 3098 | -7/Scraptown | Upgraded with Utility slot (x2) 3110 | -7/Scraptown | Visited Abandonware Association 3115 | -7/Scraptown | Learned abandonware demo "OVRCLOCK.EXE" 3118 | -7/Scraptown | Learned abandonware demo "TRNCOAT.EXE" 3118 | -7/Scraptown | Learned abandonware demo "POISON.EXE" 3132 | -7/Scraptown | Visited Scrapoid Pod Storage 3143 | -7/Scraptown | Visited Scrapoid Research Area 3212 | -7/Scraptown | Visited Curators Association 3221 | -7/Scraptown | Visited Science Guys 3243 | -7/Scraptown | Visited Observation Area 3350 | -7/Scraptown | Met Optimus 3350 | -7/Scraptown | Accepted into 0bPrime 3390 | -7/Scraptown | Civil war broke out across Scraptown 3405 | -7/Scraptown | Entered Factory 3406 | -5/Factory | Identified exit to Upper Caves 3407 | -5/Factory | Reached level 10 3407 | -5/Factory | Reached level 11 3407 | -5/Factory | Reached level 12 3407 | -5/Factory | Reached level 13 3407 | -5/Factory | Reached level 14 3407 | -5/Factory | Reached level 15 3456 | -5/Factory | Loaded intel: 8 recycling unit locations 3537 | -5/Factory | Fabricated Imp. Linear Gravjet? 3567 | -5/Factory | Learned location of Protoforge (-2) 3646 | -5/Factory | Reached level 16 3893 | -5/Factory | Build established: Wizard-Scout 4077 | -5/Factory | Discovered exit to Upper Caves (range 18) 4228 | -5/Factory | Identified exit to Factory 4228 | -5/Factory | Discovered exit to Factory (range 20) 4377 | -5/Factory | Fabricated Lgt. Quantum Reactor (x2) 4416 | -5/Factory | Reached level 17 4467 | -5/Factory | Garrison activated, responded to threat 4537 | -5/Factory | Upgraded with Utility slot (x1) 4539 | -5/Factory | Discovered exit to Factory (range 13) 4583 | -5/Factory | Entered Upper Caves 4583 | -5/Upper Caves | Accompanied by 1 ally 4610 | -5/Upper Caves | Learned 8 Factory zone layouts 4713 | -5/Upper Caves | Identified exit to Upper Caves 4713 | -5/Upper Caves | Discovered exit to Upper Caves (range 12) 4820 | -5/Upper Caves | Reached level 18 4944 | -5/Upper Caves | Entered another Upper Caves area 4944 | -5/Upper Caves | Accompanied by 1 ally 4946 | -5/Upper Caves | Discovered exit to Factory (range 20) 4950 | -5/Upper Caves | Learned location of 1 exit from Proximity Caves 4961 | -5/Upper Caves | Encountered a Warlord checkpoint 4980 | -5/Upper Caves | Attracted the attention of an 0b10 outpost 5034 | -5/Upper Caves | Found Alien Artifact 5087 | -5/Upper Caves | Reached level 19 5121 | -5/Upper Caves | Identified exit to Zhirov 5121 | -5/Upper Caves | Discovered exit to Zhirov (range 13) 5128 | -5/Upper Caves | Entered Zhirov 5128 | -5/Zhirov | Identified exit to Proximity Caves 5128 | -5/Zhirov | Discovered exit to Proximity Caves (range 3) 5135 | -5/Zhirov | Met Zhirov 5137 | -5/Zhirov | Identified Dimensional Node Initializer 5137 | -5/Zhirov | Initialized slip node 5153 | -5/Zhirov | Learned location of Quarantine (-2) 5153 | -5/Zhirov | Learned location of Testing (-3) 5153 | -5/Zhirov | Learned location of Command (-1) 5155 | -5/Zhirov | Zhirov requested help retrieving the SGEMP Prototype 5163 | -5/Zhirov | Found Alien Artifact 5168 | -5/Zhirov | Found Alien Artifact 5168 | -5/Zhirov | Identified Integrated Reactor 5168 | -5/Zhirov | Installed Integrated Reactor, increased core energy generation (+10) 5244 | -5/Zhirov | Upgraded with Utility slot (x1) 5292 | -5/Zhirov | Entered Proximity Caves 5294 | -4/Proximity Caves | Reached level 20 5295 | -4/Proximity Caves | Learned location of 1 exit from Proximity Caves 5297 | -4/Proximity Caves | Learned 4 Research zone layouts 5314 | -4/Proximity Caves | Spotted B-86 Titan 5353 | -4/Proximity Caves | Destroyed B-86 Titan 5544 | -4/Proximity Caves | Learned location of 1 exit from Research 5549 | -4/Proximity Caves | Entered Factory 5550 | -4/Factory | Identified exit to Research 5550 | -4/Factory | Identified exit to Extension 5551 | -4/Factory | Reached level 21 5626 | -4/Factory | Loaded intel: 7 recycling unit locations 5916 | -4/Factory | Reached level 22 5944 | -4/Factory | Identified exit to Upper Caves 5944 | -4/Factory | Discovered exit to Upper Caves (range 9) 6025 | -4/Factory | Discovered exit to Research (range 12) 6196 | -4/Factory | Fabricated Imp. Arc Thrower (x1) 6226 | -4/Factory | Cargo convoy interrupted 6226 | -4/Factory | Spotted Striker 6246 | -4/Factory | Identified exit to Armory 6246 | -4/Factory | Discovered exit to Armory (range 13) 6300 | -4/Factory | Discovered exit to Research (range 18) 6379 | -4/Factory | Entered Extension 6381 | -4/Extension | Reached level 23 6387 | -4/Extension | Energy Cycler disabled 6393 | -4/Extension | Rescued a captive Derelict 6405 | -4/Extension | Disrupted transfer network 6409 | -4/Extension | Rescued a captive Derelict 6415 | -4/Extension | Rescued a captive Derelict 6420 | -4/Extension | Rescued a captive Derelict 6420 | -4/Extension | Rescued a captive Derelict 6523 | -4/Extension | Spotted B-86 Titan 6539 | -4/Extension | Destroyed B-86 Titan 6543 | -4/Extension | Discovered exit to Research (range 19) 6543 | -4/Extension | Spotted B-86 Titan 6593 | -4/Extension | Destroyed B-86 Titan 6655 | -4/Extension | Reached level 24 6681 | -4/Extension | Destroyed 10 combat bots 6684 | -4/Extension | Extracted ID and sensor layout for unrecognized location from A7's data core 6806 | -4/Extension | Identified exit to Cetus 6859 | -4/Extension | Discovered exit to Research (range 10) 6865 | -4/Extension | Upgraded with Utility slot (x1) 6865 | -4/Extension | Found Quantum Capacitor 7017 | -4/Extension | Entered Cetus 7022 | -4/Cetus | Spotted Cetus Guard 7022 | -4/Cetus | Spotted Cetus Guard 7022 | -4/Cetus | Spotted Cetus Guard 7024 | -4/Cetus | Attached CPS modules to Cetus Guard 7025 | -4/Cetus | Spotted Cetus Guard 7026 | -4/Cetus | Attached CPS modules to Cetus Guard 7040 | -4/Cetus | Destroyed Cetus Guard 7053 | -4/Cetus | Destroyed Cetus Guard 7056 | -4/Cetus | Destroyed Cetus Guard 7059 | -4/Cetus | Destroyed Cetus Guard 7118 | -4/Cetus | Cetus Manufacturing Module disabled 7127 | -4/Cetus | Identified exit to Archives 7127 | -4/Cetus | Discovered exit to Archives (range 20) 7143 | -4/Cetus | Entered Archives 7168 | -4/Archives | Discovered exit to Research (range 19) 7169 | -4/Archives | Identified exit to Hub_04(d) 7169 | -4/Archives | Discovered exit to Hub_04(d) (range 20) 7178 | -4/Archives | Discovered exit to Hub_04(d) (range 20) 7191 | -4/Archives | Entered Hub_04(d) 7193 | -4/Hub_04(d) | Reached level 25 7261 | -4/Hub_04(d) | Upgraded with Utility slot (x1) 7300 | -4/Hub_04(d) | Disrupted transfer network 7350 | -4/Hub_04(d) | Network Hub disabled 7352 | -4/Hub_04(d) | Entered Research 7353 | -3/Research | Identified exit to Research 7354 | -3/Research | Reached level 26 7361 | -3/Research | Identified exit to Testing 7361 | -3/Research | Discovered exit to Testing (range 9) 7384 | -3/Research | Upgraded with Utility slot (x1) 7396 | -3/Research | Identified Transdimensional Reconstructor 7430 | -3/Research | Entered Testing 7432 | -3/Testing | Reached level 27 7449 | -3/Testing | Found Prototype Energy Gun 7449 | -3/Testing | Identified Hyp. EM Gauss Rifle 7515 | -3/Testing | Discovered exit to Research (range 19) 7646 | -3/Testing | Entered Research 7648 | -2/Research | Reached level 28 7660 | -2/Research | Found Prototype Device 7660 | -2/Research | Identified Adv. EM Shield 7665 | -2/Research | Loaded intel: 5 recycling unit locations 7749 | -2/Research | Watched by a mysterious "MATRIX" hacker 7749 | -2/Research | Identified exit to Quarantine 7801 | -2/Research | Spotted B-90 Cyclops 7819 | -2/Research | Destroyed B-90 Cyclops 7841 | -2/Research | Entered Quarantine 7843 | -2/Quarantine | Reached level 29 7962 | -2/Quarantine | Identified exit to Access 7962 | -2/Quarantine | Discovered exit to Access (range 19) 7969 | -2/Quarantine | Found Alien Reactor 7976 | -2/Quarantine | Found Alien Artifact 8074 | -2/Quarantine | Spotted Fortress 8105 | -2/Quarantine | Identified exit to Section 7 8105 | -2/Quarantine | Discovered exit to Section 7 (range 6) 8105 | -2/Quarantine | Identified exit to Protoforge 8105 | -2/Quarantine | Discovered exit to Protoforge (range 6) 8108 | -2/Quarantine | Entered Protoforge 8110 | -2/Protoforge | Reached level 30 8176 | -2/Protoforge | Spotted Hotshot 8183 | -2/Protoforge | Spotted B-90 Cyclops 8210 | -2/Protoforge | Spotted Hotshot 8258 | -2/Protoforge | Spotted Hotshot 8265 | -2/Protoforge | Superfortress began startup sequence 8278 | -2/Protoforge | Destroyed B-90 Cyclops 8308 | -2/Protoforge | Reached level 31 8435 | -2/Protoforge | Spotted AP7-3 8435 | -2/Protoforge | Spotted AP7-3 8467 | -2/Protoforge | Destroyed Hotshot 8498 | -2/Protoforge | Destroyed Hotshot 8499 | -2/Protoforge | Core integrity fell below 50% 8510 | -2/Protoforge | Destroyed AP7-3 8573 | -2/Protoforge | Destroyed AP7-3 8583 | -2/Protoforge | Upgraded with Utility slot (x3) 8583 | -2/Protoforge | Found Prototype Device 8583 | -2/Protoforge | Identified Exp. ECM Suite 8585 | -2/Protoforge | Found Prototype Processor 8585 | -2/Protoforge | Identified Exp. Targeting Computer 8629 | -2/Protoforge | Spotted Decapitator 8632 | -2/Protoforge | Spotted Decapitator 8633 | -2/Protoforge | Destroyed Decapitator 8636 | -2/Protoforge | Destroyed Decapitator 8637 | -2/Protoforge | Found Prototype Launcher 8637 | -2/Protoforge | Identified Cep. Concussive Dispersal Blaster 8648 | -2/Protoforge | Found Cep. Concussive Dispersal Blaster 8660 | -2/Protoforge | Discovered exit to Access (range 19) 8709 | -2/Protoforge | Spotted EXE-6 8709 | -2/Protoforge | Spotted EXE-6 8714 | -2/Protoforge | Spotted Decapitator 8715 | -2/Protoforge | Spotted Decapitator 8721 | -2/Protoforge | Destroyed Decapitator 8722 | -2/Protoforge | Destroyed Decapitator 8754 | -2/Protoforge | UFD initiated attack on Protoforge (Readiness: Very Low) 8754 | -2/Protoforge | Loaded intel: 3 recycling unit locations 8790 | -2/Protoforge | Optimus greeted in Protoforge 8817 | -2/Protoforge | Found UFD Drillbomb 8821 | -2/Protoforge | Found UFD Drillbomb 8853 | -2/Protoforge | Destroyed EXE-6 8856 | -2/Protoforge | Found Prototype Device 8856 | -2/Protoforge | Identified Exp. Kinecellerator 8861 | -2/Protoforge | Found Prototype Processor 8861 | -2/Protoforge | Identified Exp. Armor Integrity Analyzer 8957 | -2/Protoforge | Spotted Striker 8959 | -2/Protoforge | Spotted Striker 9024 | -2/Protoforge | Installed UFD Drillbomb at designated target 9024 | -2/Protoforge | UFD reported confirmed Drillbomb installation 9040 | -2/Protoforge | Spotted Striker 9040 | -2/Protoforge | Spotted Executioner 9072 | -2/Protoforge | Spotted V669-w 9089 | -2/Protoforge | Spotted Decapitator 9089 | -2/Protoforge | Spotted Decapitator 9089 | -2/Protoforge | Spotted Decapitator 9135 | -2/Protoforge | Spotted AP7-3 9135 | -2/Protoforge | Spotted AP7-3 9145 | -2/Protoforge | Found Prototype Power Core 9145 | -2/Protoforge | Identified Cep. Zero-point Core 9211 | -2/Protoforge | Additional patrols dispatched to research labs 9215 | -2/Protoforge | Found Prototype Device 9215 | -2/Protoforge | Identified Cep. Navigation Harness 9273 | -2/Protoforge | Spotted V048-k 9273 | -2/Protoforge | Spotted V508-k 9290 | -2/Protoforge | Spotted Hotshot 9292 | -2/Protoforge | Destroyed Hotshot 9293 | -2/Protoforge | Spotted Hotshot 9295 | -2/Protoforge | Destroyed Hotshot 9308 | -2/Protoforge | Spotted Hotshot 9308 | -2/Protoforge | Spotted Hotshot 9332 | -2/Protoforge | Spotted Striker 9334 | -2/Protoforge | Spotted Striker 9343 | -2/Protoforge | Spotted Executioner 9343 | -2/Protoforge | Spotted Striker 9404 | -2/Protoforge | Installed UFD Drillbomb at designated target 9404 | -2/Protoforge | UFD reported confirmed Drillbomb installation 9410 | -2/Protoforge | Spotted Striker 9413 | -2/Protoforge | Spotted Striker 9418 | -2/Protoforge | Spotted Executioner 9418 | -2/Protoforge | Spotted Executioner 9421 | -2/Protoforge | Entered Access 9423 | -1/Access | Reached level 32 9423 | -1/Access | Reached level 33 9467 | -1/Access | Garrison activated, responded to threat 9486 | -1/Access | Spotted B-99 Colossus 9540 | -1/Access | Identified exit to Command 9542 | -1/Access | Spotted Striker 9542 | -1/Access | Spotted Striker 9544 | -1/Access | Spotted Striker 9545 | -1/Access | Spotted Striker 9550 | -1/Access | Identified exit to Surface 9556 | -1/Access | Spotted Executioner 9556 | -1/Access | Spotted Executioner 9607 | *** | Escaped! Last Messages --------------- >>Layout(Zone) Retrieving Zone 4S layout... Downloaded map data. >>Recall(Extermination) Establishing remote squad link... Recalled extermination squad 7STSMQGDJ2. j00'r3 pr0lly DYIN' T0 kN0w WH0 tHI5 i5. w3lL TrY n0t T0 D13 t00 PH45t, Th12 12 jU5t 93tt1n' 3Xc171N' ku2 CYPHER I2 0N ur 74iL, 7r4CKIn9 ur 3vRY mi574kE. 4ND TH3R3 5ur3 r 4 lot oF 7h3M. >>Traps(Disarm) Disarmed 4 Blade Traps. >>Traps(Disarm) No traps found in local area. 09588_ K-01 Serf cleans the Spectral Interrupter. 09589_ ALERT: Security rotation in progress. 09590_ Slug penetrates Wall. 09604_ Connecting with Terminal... >>Open(Door) Sealed Barrier opened. 09605_ The Access Shell folds into the floor. Map ----- +----------------------------------------------------+ | ""## #??????########+#######????????????????????? | | ## #??????# ##????????????????????? | | ## #??????# ##????????????????????? | | #### ######## ##????????????????????? | | #??# # / ????????????????????? | | #??# # ##????????????????????? | | #######+### # ##????????????????????? | | ????? ## #???????????????????????????????????? | | ??? ## #???????????????????????????????????? | | ? " ## #????????#??????????????????????????? | | #""" ## #?????? #??????????????????????????? | | # """ ## #???? #??????????????????????????? | | # " ## #?? #??????????????????????????? | | # ## # " #??????????????????????????? | | # ## + """ #??????????????????????????? | | # ## # """ #??????????????????????????? | | ########### #?? " #??????????????????????????? | | ??????????# #????#####??????????????????????????? | | ??????????# #?????###???????????????????????????? | | ??????????# ####### ##########??????????????????? | | ??????????# """T""" "??????????????????? | | ??????????# """ """ "??????????????????? | | ??????????# "??????????????????? | | ??????????# "??????????????????? | | ??????????# "" "??????????????????? | | ??????????# @" "??????????????????? | | ??????????# "??????????????????? | | ??????????# "??????????????????? | | ??????????# "??????????????????? | | ??????????# "??????????????????? | | ??????????# ####### ##########??????????????????? | | ??????????# #?????###???????????????????????????? | | ??????????# ????????????????????????????????????? | | ??????????# ????????????????????????????????????? | | ??????????# ????????????????????????????????????? | | ??????????# ????????????????????????????????????? | | ??????????# ????????????????????????????????????? | | ?????????? ??w?????????????????????????????????? | | ?????????? ????????????????????????????????????? | | ??????????###????????????????????????????????????? | | ?????????????????????????????????????????????????? | | ?????????????????????????????????????????????????? | | ?????????????????????????????????????????????????? | | ?????????????????????????????????????????????????? | | ?????????????????????????????????????????????????? | | ?????????????????????????????????????????????????? | | ?????????????????????????????????????????????????? | | ?????????????????????????????????????????????????? | | ?????????????????????????????????????????????????? | | ?????????????????????????????????????????????????? | +----------------------------------------------------+ Best States ------------- Heat Dissipation 134 Energy Generation 115 Energy Capacity 2450 Matter Stores 500 Matter Capacity 500 Sight Range 20 Robot Scan Range 24 Terrain Scan Range 20 Terrain Scan Density 1810 ECM Strength 3 EM Shielding 4 Corruption Block 15 Armor Coverage 225 Resistance: KI 45 Resistance: TH 45 Resistance: EX 45 Resistance: EM 35 Resistance: I 35 Resistance: S 35 Resistance: P 35 Propulsion Shielding 33 Weapon Cycling 20 Phase Shifting 15 Evasion (%) 87 Targeting Accuracy 12 Target Analysis 6 Armor Integrity Analysis 50 Particle Charging 30 Salvage Targeting 4 Offensive Hacking 60 Defensive Hacking 40 Item Schematics ----------------- Imp. Linear Gravjet | -5/Factory | Hacked Assault Drone Bay | -5/Zhirov | Free Imp. Arc Thrower | -5/Zhirov | Free Cmb. Linear Gravjet | -4/Extension | Hacked Enh. Nova Cannon | -4/Extension | Hacked Enh. Fission Core | -3/Testing | Archive Exp. Signal Interpreter | -3/Testing | Archive Hvy. Gatling Laser | -3/Testing | Archive Robot Schematics ------------------ H-66 Slayer | -4/Extension | Hacked O-32 Director | -3/Testing | Archive Fabricated ------------ Imp. Linear Gravjet | x2 | -5/Factory Lgt. Quantum Reactor | x2 | -5/Factory | Preloaded Imp. Arc Thrower | x1 | -4/Factory Repaired ---------- Nothing Studied --------- Antigrav System | -5/Factory | Hacked Wave Gun | -5/Factory | Hacked Mining Laser | -5/Factory | Hacked Imp. Linear Gravjet | -4/Factory | Hacked Matter Neutralizer | -4/Factory | Hacked Dispersion Rifle | -4/Factory | Hacked Quantum Rifle | -3/Research | Hacked Imp. Gyrokinetic Inverter | -3/Research | Hacked Enh. Nova Cannon | -2/Protoforge | Hacked Lgt. Quantum Reactor | -2/Protoforge | Hacked Enh. Quantum Rifle | -2/Protoforge | Hacked Alien Tech Used ----------------- Dimensional Node Initializer Integrated Reactor Achievements -------------- Drive-By Fine I'll Do It Myself Hulk Smash Uncivil War We Are One Well-fed Force Field Challenges ------------ None RPGLIKE | -11 -10 -10 -7 -7 -5 -5 -5 -5 -4 -4 -4 -4 -4 -4 -3 -3 -2 -2 -2 -1 --------- Run | Yrd Mat Sub Rec Scr Fac Upp Upp Zhi Pro Fac Ext Cet Arc Hub Res Tes Res Qua Frg Acc Levels Raised 32 | . . 1 6 1 8 1 1 . 1 2 2 . . 1 1 1 1 1 2 2 XP Earned 54467 | 6000 1100 1800 8644 1361 11606 1300 1600 650 1150 3105 2410 459 436 801 2000 1267 2210 1500 2772 2296 XP Spent 135370 | 22445 7020 9300 1890 6950 14090 . . 13225 . . 5000 2350 . 8900 3500 . . 7700 33000 . Upgrades 142 | 42 18 10 9 4 23 . . 15 . . 2 2 . 3 1 . . 2 11 . Power Slot 1 | . . 1 . . . . . . . . . . . . . . . . . . Propulsion Slot 3 | 1 . 2 . . . . . . . . . . . . . . . . . . Utility Slot 14 | 1 . 3 . 2 1 . . 1 . . 1 . . 1 1 . . . 3 . Weapon Slot 1 | 1 . . . . . . . . . . . . . . . . . . . . Heat Dissipation 15 | 4 . . 9 . 2 . . . . . . . . . . . . . . . Energy Generation 12 | 3 . . . . . . . . . . . 2 . . . . . . 7 . Energy Storage 8 | 6 . . . . . . . 2 . . . . . . . . . . . . Matter Storage 4 | . . . . . . . . 4 . . . . . . . . . . . . Mass Support 10 | 2 . 2 . . . . . . . . 1 . . 2 . . . 2 1 . Inventory Capacity 10 | 5 . . . 2 . . . 3 . . . . . . . . . . . . Sight Range 4 | . . . . . 4 . . . . . . . . . . . . . . . Sensor Range 12 | . . . . . 12 . . . . . . . . . . . . . . . Terrain Scan Density 18 | . 18 . . . . . . . . . . . . . . . . . . . Ranged Accuracy 4 | . . 2 . . . . . 2 . . . . . . . . . . . . Hack Attack % 8 | 6 . . . . 2 . . . . . . . . . . . . . . . Hack Defense % 8 | 6 . . . . 2 . . . . . . . . . . . . . . . KI Resistance % 2 | 1 . . . . . . . 1 . . . . . . . . . . . . TH Resistance % 2 | 1 . . . . . . . 1 . . . . . . . . . . . . EX Resistance % 2 | 1 . . . . . . . 1 . . . . . . . . . . . . TH Damage % 4 | 4 . . . . . . . . . . . . . . . . . . . . Protomatter Created 3522 | . 159 304 127 . 330 208 135 193 98 255 627 37 65 81 . . . . 903 . Integrity Restored 4346 | . 156 363 144 48 441 52 164 . 414 269 210 162 . . . 122 96 . 1705 . Core 2586 | . 100 220 41 5 213 36 130 . 266 183 147 116 . . . 90 75 . 964 . Parts 1760 | . 56 143 103 43 228 16 34 . 148 86 63 46 . . . 32 21 . 741 . Protomatter Decayed 5789 | . 71 154 62 6 131 100 114 50 26 368 356 . . 111 . . . . 4240 . Game ------ Seed TrapAlloyMaterializer Manual? 0 Play Time 03:20:31 Cumulative 350.5 hours Start 2026.07.11 @ 22:36:26 End 2026.07.13 @ 23:10:06 Sessions 5 Manual Loads 0 Difficulty Explorer Special Mode Winter2019/RPGLIKE Game No. 130 Rogue 0 Adventurer 1 Explorer 129 Win Type 0 Total 30 Types 18/1/5/3/0/1/1/0/1/0 Lore% 76 Gallery% 73 Achievement% 63 Wizard Run 0 Options --------- Layout 0 ASCII 0 Keyboard 1 Movement Numpad Keybinds 0 Fullscreen 2 Font 18/X11 Map View 76x50 Zoom Use 0% Tactical HUD 1 Map Filters BRIGHTNESS(150) Filters NONE Steam 1 RUN: a499c990-e114-45aa-a523-436136a7c96b